[Event "*** Titled Tuesday Blitz"]
[Site "Chess.com"]
[Date "2020.05.26"]
[Round "9"]
[White "AnishGiri"]
[Black "CarlosAlbornoz"]
[Result "1-0"]
[WhiteElo "2963"]
[BlackElo "2725"]
[TimeControl "180+1"]
[EndTime "11:55:01 PDT"]
[Termination "AnishGiri won by checkmate"]

1. d4 {[%clk 0:03:00.9]} 1... Nf6 {[%clk 0:02:58.5]} 2. c4 {[%clk 0:03:01.1]}
2... g6 {[%clk 0:02:58.6]} 3. Nc3 {[%clk 0:03:01.4]} 3... Bg7 {[%clk 0:02:58.8]}
4. e4 {[%clk 0:03:01.6]} 4... d6 {[%clk 0:02:59.1]} 5. Be2 {[%clk 0:03:00.5]}
5... O-O {[%clk 0:02:58.8]} 6. h4 {[%clk 0:03:01]} 6... c5 {[%clk 0:02:55.8]} 7.
d5 {[%clk 0:03:00.7]} 7... e6 {[%clk 0:02:56.1]} 8. h5 {[%clk 0:03:01.1]} 8...
exd5 {[%clk 0:02:56.2]} 9. exd5 {[%clk 0:03:01.2]} 9... Re8 {[%clk 0:02:56.3]}
10. h6 {[%clk 0:03:00.5]} 10... Bh8 {[%clk 0:02:55.9]} 11. Kf1 {[%clk
0:02:13.4]} 11... a6 {[%clk 0:02:53.9]} 12. a4 {[%clk 0:02:13.1]} 12... Ne4
{[%clk 0:02:49]} 13. Nxe4 {[%clk 0:02:12.4]} 13... Rxe4 {[%clk 0:02:49.9]} 14.
Qc2 {[%clk 0:01:59.4]} 14... Re8 {[%clk 0:02:47.4]} 15. Nf3 {[%clk 0:01:58.2]}
15... Nd7 {[%clk 0:02:41.7]} 16. Bg5 {[%clk 0:01:54.5]} 16... Qb6 {[%clk
0:02:41]} 17. a5 {[%clk 0:01:43.4]} 17... Qxb2 {[%clk 0:02:35.4]} 18. Qxb2
{[%clk 0:01:43.2]} 18... Bxb2 {[%clk 0:02:36.3]} 19. Rb1 {[%clk 0:01:39]} 19...
Bc3 {[%clk 0:02:35.7]} 20. Bd2 {[%clk 0:01:39.1]} 20... Bxd2 {[%clk 0:02:31.7]}
21. Nxd2 {[%clk 0:01:40]} 21... b6 {[%clk 0:02:25.2]} 22. axb6 {[%clk
0:01:39.6]} 22... Rb8 {[%clk 0:02:25.1]} 23. Rh3 {[%clk 0:01:35.5]} 23... Rxb6
{[%clk 0:02:21.1]} 24. Rxb6 {[%clk 0:01:35.3]} 24... Nxb6 {[%clk 0:02:22]} 25.
Rb3 {[%clk 0:01:35.2]} 25... Nd7 {[%clk 0:02:22]} 26. f4 {[%clk 0:01:32.4]}
26... f6 {[%clk 0:02:03.9]} 27. g4 {[%clk 0:01:24.9]} 27... g5 {[%clk 0:01:59]}
28. Bd3 {[%clk 0:01:07]} 28... Kf7 {[%clk 0:01:29]} 29. Bxh7 {[%clk 0:00:30]}
29... Rh8 {[%clk 0:01:27.4]} 30. Bf5 {[%clk 0:00:28.4]} 30... Rxh6 {[%clk
0:01:27]} 31. Ne4 {[%clk 0:00:26.7]} 31... Ke7 {[%clk 0:01:25]} 32. fxg5 {[%clk
0:00:27]} 32... fxg5 {[%clk 0:01:25.2]} 33. Nxg5 {[%clk 0:00:27.7]} 33... Rh8
{[%clk 0:01:20]} 34. Nf3 {[%clk 0:00:23.9]} 34... a5 {[%clk 0:01:10]} 35. Re3+
{[%clk 0:00:21.5]} 35... Kd8 {[%clk 0:00:57.8]} 36. Ng5 {[%clk 0:00:21.6]} 36...
Kc7 {[%clk 0:00:49.1]} 37. Ne6+ {[%clk 0:00:19.7]} 37... Kb7 {[%clk 0:00:49.2]}
38. Rb3+ {[%clk 0:00:19.6]} 38... Ka7 {[%clk 0:00:47]} 39. Rb5 {[%clk 0:00:19]}
39... Ba6 {[%clk 0:00:44.7]} 40. Rxa5 {[%clk 0:00:18.9]} 40... Kb6 {[%clk
0:00:44.8]} 41. Ra4 {[%clk 0:00:17.6]} 41... Ne5 {[%clk 0:00:44.7]} 42. Kf2
{[%clk 0:00:17.7]} 42... Bxc4 {[%clk 0:00:41.6]} 43. Nf4 {[%clk 0:00:18]} 43...
Bb5 {[%clk 0:00:38.8]} 44. Ra1 {[%clk 0:00:17.7]} 44... c4 {[%clk 0:00:38.8]}
45. Ke3 {[%clk 0:00:15.3]} 45... Kc5 {[%clk 0:00:36]} 46. Ne6+ {[%clk
0:00:13.8]} 46... Kb4 {[%clk 0:00:34.5]} 47. Rb1+ {[%clk 0:00:13.7]} 47... Ka5
{[%clk 0:00:34]} 48. Nd4 {[%clk 0:00:13.3]} 48... Rh3+ {[%clk 0:00:33]} 49. Kf4
{[%clk 0:00:13]} 49... Ba4 {[%clk 0:00:30.4]} 50. Rb8 {[%clk 0:00:07.8]} 50...
c3 {[%clk 0:00:23.3]} 51. Rd8 {[%clk 0:00:08.4]} 51... Nd3+ {[%clk 0:00:19.6]}
52. Kg5 {[%clk 0:00:06.8]} 52... c2 {[%clk 0:00:19.5]} 53. Nxc2 {[%clk
0:00:06.4]} 53... Bxc2 {[%clk 0:00:19.7]} 54. Rxd6 {[%clk 0:00:07.1]} 54... Kb5
{[%clk 0:00:14.9]} 55. Rd8 {[%clk 0:00:06.2]} 55... Bb3 {[%clk 0:00:11.8]} 56.
Rb8+ {[%clk 0:00:05.2]} 56... Kc4 {[%clk 0:00:09.6]} 57. d6 {[%clk 0:00:05.7]}
57... Ba4 {[%clk 0:00:08.2]} 58. Ra8 {[%clk 0:00:02.5]} 58... Bb5 {[%clk
0:00:07.2]} 59. Ra3 {[%clk 0:00:02.7]} 59... Nf2 {[%clk 0:00:03.3]} 60. Rxh3
{[%clk 0:00:03]} 60... Nxh3+ {[%clk 0:00:04.2]} 61. Kf6 {[%clk 0:00:03.9]} 61...
Kc5 {[%clk 0:00:04.3]} 62. Ke7 {[%clk 0:00:03.7]} 62... Ng5 {[%clk 0:00:04.5]}
63. Bd7 {[%clk 0:00:02.9]} 63... Bc4 {[%clk 0:00:02.8]} 64. Bc8 {[%clk
0:00:02.3]} 64... Bb5 {[%clk 0:00:02.7]} 65. Bd7 {[%clk 0:00:02.9]} 65... Bc4
{[%clk 0:00:02.9]} 66. Bf5 {[%clk 0:00:03.6]} 66... Bb5 {[%clk 0:00:03.2]} 67.
d7 {[%clk 0:00:04.2]} 67... Bxd7 {[%clk 0:00:02.7]} 68. Bxd7 {[%clk 0:00:05.1]}
68... Kd4 {[%clk 0:00:03.6]} 69. Kf6 {[%clk 0:00:04.9]} 69... Nf3 {[%clk
0:00:03.9]} 70. Bc6 {[%clk 0:00:04.3]} 70... Ne5 {[%clk 0:00:04.2]} 71. g5
{[%clk 0:00:05]} 71... Nxc6 {[%clk 0:00:02.6]} 72. g6 {[%clk 0:00:05.3]} 72...
Ne5 {[%clk 0:00:03]} 73. g7 {[%clk 0:00:05.8]} 73... Ng4+ {[%clk 0:00:03.3]} 74.
Kg5 {[%clk 0:00:05.7]} 74... Ne5 {[%clk 0:00:03.7]} 75. g8=Q {[%clk 0:00:05.8]}
75... Nc4 {[%clk 0:00:04.1]} 76. Qg7+ {[%clk 0:00:06]} 76... Kc5 {[%clk
0:00:04]} 77. Kf4 {[%clk 0:00:05.8]} 77... Nd6 {[%clk 0:00:03.9]} 78. Qe5+
{[%clk 0:00:06]} 78... Kc6 {[%clk 0:00:04]} 79. Qe6 {[%clk 0:00:06.2]} 79... Kc5
{[%clk 0:00:03.9]} 80. Qb3 {[%clk 0:00:06.4]} 80... Nc4 {[%clk 0:00:04.6]} 81.
Qd3 {[%clk 0:00:06.3]} 81... Nd6 {[%clk 0:00:04.4]} 82. Ke5 {[%clk 0:00:06.8]}
82... Nc4+ {[%clk 0:00:04.5]} 83. Ke6 {[%clk 0:00:07.3]} 83... Kb4 {[%clk
0:00:05]} 84. Kd5 {[%clk 0:00:06.9]} 84... Na3 {[%clk 0:00:04.7]} 85. Qe3 {[%clk
0:00:03.2]} 85... Ka4 {[%clk 0:00:03.5]} 86. Qc3 {[%clk 0:00:02.9]} 86... Nb5
{[%clk 0:00:01.8]} 87. Qc4+ {[%clk 0:00:03.4]} 87... Ka5 {[%clk 0:00:01.9]} 88.
Kc5 {[%clk 0:00:03.7]} 88... Na7 {[%clk 0:00:01.9]} 89. Qb4+ {[%clk 0:00:03.6]}
89... Ka6 {[%clk 0:00:01.7]} 90. Qb6# {[%clk 0:00:04.5]} 1-0

[Event "*** Titled Tuesday Blitz"]
[Site "Chess.com"]
[Date "2020.05.26"]
[Round "9"]
[White "BocharovD"]
[Black "mishanick"]
[Result "1-0"]
[WhiteElo "2843"]
[BlackElo "2950"]
[TimeControl "180+1"]
[EndTime "11:55:20 PDT"]
[Termination "BocharovD won by resignation"]

1. c4 {[%clk 0:03:00.9]} 1... e6 {[%clk 0:02:57.6]} 2. Nf3 {[%clk 0:03:00.4]}
2... d5 {[%clk 0:02:58]} 3. e3 {[%clk 0:03:00.5]} 3... Nf6 {[%clk 0:02:57.5]} 4.
b3 {[%clk 0:03:00.8]} 4... dxc4 {[%clk 0:02:57.6]} 5. bxc4 {[%clk 0:02:55.5]}
5... c5 {[%clk 0:02:54.7]} 6. Bb2 {[%clk 0:02:55.4]} 6... b6 {[%clk 0:02:52.8]}
7. Nc3 {[%clk 0:02:54.9]} 7... Bb7 {[%clk 0:02:52.7]} 8. Be2 {[%clk 0:02:54.1]}
8... Be7 {[%clk 0:02:52.4]} 9. O-O {[%clk 0:02:54.2]} 9... O-O {[%clk
0:02:52.5]} 10. d3 {[%clk 0:02:51.9]} 10... Nc6 {[%clk 0:02:45.9]} 11. Qc2
{[%clk 0:02:52]} 11... Nd7 {[%clk 0:02:44.1]} 12. Rfd1 {[%clk 0:02:51.3]} 12...
Rc8 {[%clk 0:02:43.1]} 13. Rac1 {[%clk 0:02:51]} 13... Re8 {[%clk 0:02:42.1]}
14. Qb1 {[%clk 0:02:49.8]} 14... Bf6 {[%clk 0:02:41.5]} 15. d4 {[%clk
0:02:45.3]} 15... cxd4 {[%clk 0:02:40.6]} 16. exd4 {[%clk 0:02:46.2]} 16... Na5
{[%clk 0:02:37.5]} 17. Ne4 {[%clk 0:02:33.2]} 17... Bxe4 {[%clk 0:02:06.7]} 18.
Qxe4 {[%clk 0:02:29.8]} 18... Qc7 {[%clk 0:02:07.3]} 19. h4 {[%clk 0:02:20.7]}
19... Red8 {[%clk 0:02:05.9]} 20. Bd3 {[%clk 0:02:10.5]} 20... Nf8 {[%clk
0:02:05.4]} 21. Ng5 {[%clk 0:02:06.1]} 21... g6 {[%clk 0:01:45.3]} 22. c5 {[%clk
0:01:58.6]} 22... bxc5 {[%clk 0:01:10.5]} 23. Rxc5 {[%clk 0:01:54.8]} 23... Qb7
{[%clk 0:00:50]} 24. Rxc8 {[%clk 0:01:20.6]} 24... Rxc8 {[%clk 0:00:46.2]} 25.
Qe2 {[%clk 0:01:20.5]} 25... Qd5 {[%clk 0:00:40.9]} 26. Ne4 {[%clk 0:01:12.1]}
26... Bxh4 {[%clk 0:00:38.3]} 27. Nc3 {[%clk 0:01:03]} 27... Qd7 {[%clk
0:00:30.4]} 28. d5 {[%clk 0:01:03.1]} 28... Bf6 {[%clk 0:00:30.1]} 29. Bb5
{[%clk 0:01:00.3]} 29... Qc7 {[%clk 0:00:21.5]} 30. d6 {[%clk 0:00:53.1]} 30...
Qb6 {[%clk 0:00:16.5]} 31. d7 {[%clk 0:00:53.1]} 31... Nxd7 {[%clk 0:00:13.9]}
32. Ne4 {[%clk 0:00:41.7]} 32... Bxb2 {[%clk 0:00:12.8]} 33. Qxb2 {[%clk
0:00:40.9]} 33... Nc4 {[%clk 0:00:12.4]} 34. Qc3 {[%clk 0:00:18]} 34... Nde5
{[%clk 0:00:08.6]} 35. a4 {[%clk 0:00:12.7]} 35... Qb8 {[%clk 0:00:05.1]} 36.
Nf6+ {[%clk 0:00:12]} 36... Kf8 {[%clk 0:00:04.7]} 37. Bxc4 {[%clk 0:00:11.8]}
37... Rxc4 {[%clk 0:00:03.1]} 38. Qxe5 {[%clk 0:00:10.8]} 38... Qxe5 {[%clk
0:00:03.5]} 39. Nd7+ {[%clk 0:00:11.2]} 39... Kg7 {[%clk 0:00:03.9]} 40. Nxe5
{[%clk 0:00:12.1]} 40... Rxa4 {[%clk 0:00:04.4]} 41. Rd7 {[%clk 0:00:11.6]}
41... Rf4 {[%clk 0:00:04.6]} 42. Rxa7 {[%clk 0:00:10.7]} 42... Rf5 {[%clk
0:00:05.2]} 43. Nf3 {[%clk 0:00:09.7]} 43... h5 {[%clk 0:00:05.5]} 44. Kf1
{[%clk 0:00:09.7]} 44... g5 {[%clk 0:00:05.5]} 45. Ke2 {[%clk 0:00:10.1]} 45...
g4 {[%clk 0:00:05.6]} 46. Nd4 {[%clk 0:00:10.7]} 46... Re5+ {[%clk 0:00:05.7]}
47. Kd3 {[%clk 0:00:11.1]} 47... Kf6 {[%clk 0:00:06.3]} 48. Ra1 {[%clk
0:00:10.5]} 48... Rd5 {[%clk 0:00:06.6]} 49. Ke3 {[%clk 0:00:11]} 49... Re5+
{[%clk 0:00:05.6]} 50. Kf4 {[%clk 0:00:11.4]} 50... Rc5 {[%clk 0:00:06.1]} 51.
Ne2 {[%clk 0:00:11.2]} 51... Re5 {[%clk 0:00:05.1]} 52. Ng3 {[%clk 0:00:10.5]}
52... Rb5 {[%clk 0:00:05.6]} 53. Ra8 {[%clk 0:00:09.3]} 53... Rb4+ {[%clk
0:00:04.3]} 54. Ke3 {[%clk 0:00:09.5]} 54... h4 {[%clk 0:00:04.6]} 55. Ne4+
{[%clk 0:00:09.4]} 55... Kf5 {[%clk 0:00:04.5]} 56. Ra5+ {[%clk 0:00:09]} 56...
e5 {[%clk 0:00:04.1]} 57. Nd2 {[%clk 0:00:09.4]} 57... f6 {[%clk 0:00:03.1]} 58.
Ra8 {[%clk 0:00:09]} 58... Rb6 {[%clk 0:00:02.7]} 59. Rh8 {[%clk 0:00:08.6]}
59... Rc6 {[%clk 0:00:03.1]} 60. Rxh4 {[%clk 0:00:08.2]} 60... Rc3+ {[%clk
0:00:03.7]} 61. Ke2 {[%clk 0:00:08]} 61... Ra3 {[%clk 0:00:02.8]} 62. Rh6 {[%clk
0:00:07.7]} 62... g3 {[%clk 0:00:02.9]} 63. Rh3 {[%clk 0:00:06.1]} 63... Kg4
{[%clk 0:00:02]} 64. f3+ {[%clk 0:00:04.8]} 64... Kf4 {[%clk 0:00:02.2]} 65.
Rh4+ {[%clk 0:00:05.1]} 65... Kf5 {[%clk 0:00:02.8]} 66. Rg4 {[%clk 0:00:06]}
66... Ra2 {[%clk 0:00:03.6]} 67. Rxg3 {[%clk 0:00:06.4]} 67... Ke6 {[%clk
0:00:04.5]} 68. Rg4 {[%clk 0:00:06.7]} 68... f5 {[%clk 0:00:05.4]} 69. Rc4
{[%clk 0:00:07.2]} 69... Rb2 {[%clk 0:00:05.8]} 70. g3 {[%clk 0:00:07.6]} 70...
Kd5 {[%clk 0:00:06.3]} 71. Rc3 {[%clk 0:00:07.5]} 71... Ra2 {[%clk 0:00:04.8]}
72. Rd3+ {[%clk 0:00:07.6]} 72... Ke6 {[%clk 0:00:05.5]} 73. Ke3 {[%clk
0:00:08]} 73... Ra1 {[%clk 0:00:05.3]} 74. f4 {[%clk 0:00:08.4]} 74... Re1+
{[%clk 0:00:04.9]} 75. Kf2 {[%clk 0:00:08.2]} 75... Rd1 {[%clk 0:00:05.2]} 76.
Ke2 {[%clk 0:00:08.5]} 76... Rh1 {[%clk 0:00:05]} 77. Nf3 {[%clk 0:00:08.6]}
77... e4 {[%clk 0:00:05.2]} 78. Ng5+ {[%clk 0:00:08.9]} 78... Ke7 {[%clk
0:00:05.6]} 79. Rd5 {[%clk 0:00:08.8]} 79... Kf6 {[%clk 0:00:06.1]} 80. Rd6+
{[%clk 0:00:08.7]} 80... Kg7 {[%clk 0:00:06.7]} 81. Re6 {[%clk 0:00:08.8]} 81...
Rg1 {[%clk 0:00:05.9]} 82. Kf2 {[%clk 0:00:09]} 82... Ra1 {[%clk 0:00:05.6]} 83.
Rb6 {[%clk 0:00:09.2]} 83... Ra2+ {[%clk 0:00:05.8]} 84. Kg1 {[%clk 0:00:09.1]}
84... Ra1+ {[%clk 0:00:02.5]} 85. Kg2 {[%clk 0:00:09.1]} 85... Ra2+ {[%clk
0:00:03.2]} 86. Kh3 {[%clk 0:00:09.4]} 86... Ra1 {[%clk 0:00:03.8]} 87. Re6
{[%clk 0:00:09.4]} 87... Rh1+ {[%clk 0:00:03.4]} 88. Kg2 {[%clk 0:00:08.9]}
88... Ra1 {[%clk 0:00:04.3]} 89. Re5 {[%clk 0:00:09.1]} 89... Ra2+ {[%clk
0:00:04.5]} 90. Kh3 {[%clk 0:00:08.6]} 90... Kg6 {[%clk 0:00:05]} 91. g4 {[%clk
0:00:09.1]} 91... fxg4+ {[%clk 0:00:03.3]} 92. Kxg4 {[%clk 0:00:08.5]} 92...
Rg2+ {[%clk 0:00:03.9]} 93. Kh4 {[%clk 0:00:08.9]} 93... Rg1 {[%clk 0:00:04]}
94. Nxe4 {[%clk 0:00:08.8]} 94... Rh1+ {[%clk 0:00:03.5]} 95. Kg4 {[%clk
0:00:09.1]} 95... Rg1+ {[%clk 0:00:03.9]} 96. Ng3 {[%clk 0:00:10]} 96... Ra1
{[%clk 0:00:03.4]} 97. Re6+ {[%clk 0:00:10.4]} 97... Kf7 {[%clk 0:00:04.3]} 98.
f5 {[%clk 0:00:11.3]} 98... Ra3 {[%clk 0:00:03.8]} 99. Ne4 {[%clk 0:00:10.9]}
99... Ra1 {[%clk 0:00:04.3]} 100. Ng5+ {[%clk 0:00:10.5]} 100... Kg7 {[%clk
0:00:04.8]} 101. f6+ {[%clk 0:00:11]} 101... Kf8 {[%clk 0:00:04.5]} 102. Kf5
{[%clk 0:00:10.6]} 102... Ra7 {[%clk 0:00:04.1]} 103. Kg6 {[%clk 0:00:09.7]}
103... Ra8 {[%clk 0:00:04.4]} 104. Nh7+ {[%clk 0:00:09.2]} 104... Kg8 {[%clk
0:00:04.4]} 105. f7+ {[%clk 0:00:10.1]} 1-0

[Event "*** Titled Tuesday Blitz"]
[Site "Chess.com"]
[Date "2020.05.26"]
[Round "10"]
[White "DinaBelenkaya"]
[Black "WinstonSilvakov"]
[Result "1-0"]
[WhiteElo "2257"]
[BlackElo "2102"]
[TimeControl "180+1"]
[EndTime "11:57:36 PDT"]
[Termination "DinaBelenkaya won by resignation"]

1. e4 {[%clk 0:03:00.9]} 1... Nf6 {[%clk 0:02:59.5]} 2. e5 {[%clk 0:03:00.7]}
2... Nd5 {[%clk 0:02:58.5]} 3. d4 {[%clk 0:03:01.6]} 3... d6 {[%clk 0:02:57.5]}
4. c4 {[%clk 0:03:01.8]} 4... Nb6 {[%clk 0:02:57.2]} 5. exd6 {[%clk 0:03:02.7]}
5... cxd6 {[%clk 0:02:56.6]} 6. Nc3 {[%clk 0:03:00]} 6... g6 {[%clk 0:02:56.8]}
7. Be3 {[%clk 0:03:00]} 7... Bg7 {[%clk 0:02:56.1]} 8. Rc1 {[%clk 0:03:00]} 8...
O-O {[%clk 0:02:54.7]} 9. b3 {[%clk 0:03:00.1]} 9... e5 {[%clk 0:02:54.1]} 10.
dxe5 {[%clk 0:02:57.3]} 10... dxe5 {[%clk 0:02:52]} 11. Qxd8 {[%clk 0:02:54.4]}
11... Rxd8 {[%clk 0:02:46.8]} 12. c5 {[%clk 0:02:55.3]} 12... Nd5 {[%clk
0:02:42.6]} 13. Rd1 {[%clk 0:02:45.7]} 13... Be6 {[%clk 0:02:34.2]} 14. Bc4
{[%clk 0:02:45.2]} 14... Nxc3 {[%clk 0:02:14]} 15. Rxd8+ {[%clk 0:02:44]} 1-0

[Event "*** Titled Tuesday Blitz"]
[Site "Chess.com"]
[Date "2020.05.26"]
[Round "10"]
[White "Swarajan"]
[Black "woodhy"]
[Result "0-1"]
[WhiteElo "2179"]
[BlackElo "2423"]
[TimeControl "180+1"]
[EndTime "11:57:42 PDT"]
[Termination "woodhy won by resignation"]

1. d4 {[%clk 0:03:00.9]} 1... Nf6 {[%clk 0:02:58.9]} 2. c4 {[%clk 0:02:59]} 2...
e6 {[%clk 0:02:59]} 3. Nf3 {[%clk 0:02:59.1]} 3... b6 {[%clk 0:02:58.9]} 4. g3
{[%clk 0:02:59]} 4... Bb7 {[%clk 0:02:58.7]} 5. Bg2 {[%clk 0:02:59]} 5... Be7
{[%clk 0:02:58.5]} 6. O-O {[%clk 0:02:59.1]} 6... O-O {[%clk 0:02:58.8]} 7. Nc3
{[%clk 0:02:59.3]} 7... Ne4 {[%clk 0:02:59.2]} 8. Qc2 {[%clk 0:02:55.2]} 8... f5
{[%clk 0:02:55.3]} 9. Nd2 {[%clk 0:02:49]} 9... Nxc3 {[%clk 0:02:43.8]} 10. Bxb7
{[%clk 0:02:45.9]} 10... Nxe2+ {[%clk 0:02:42.7]} 11. Kh1 {[%clk 0:02:45.3]}
11... Nxd4 {[%clk 0:02:43.6]} 12. Qd3 {[%clk 0:02:42.8]} 12... Nbc6 {[%clk
0:02:43.7]} 13. Bxa8 {[%clk 0:02:39]} 13... Qxa8 {[%clk 0:02:44.6]} 14. f3
{[%clk 0:02:35.6]} 14... Bf6 {[%clk 0:02:41.9]} 15. Nb3 {[%clk 0:02:32.8]} 15...
Nb4 {[%clk 0:02:20.4]} 16. Nxd4 {[%clk 0:02:26.8]} 16... Nxd3 {[%clk 0:02:17.7]}
0-1

[Event "*** Titled Tuesday Blitz"]
[Site "Chess.com"]
[Date "2020.05.26"]
[Round "10"]
[White "ZarinaShafigullina"]
[Black "Jungle_Jaguar"]
[Result "0-1"]
[WhiteElo "2338"]
[BlackElo "2560"]
[TimeControl "180+1"]
[EndTime "11:57:59 PDT"]
[Termination "Jungle_Jaguar won by resignation"]

1. d4 {[%clk 0:03:00.9]} 1... Nf6 {[%clk 0:03:00]} 2. Nf3 {[%clk 0:03:01.8]}
2... e6 {[%clk 0:03:00.4]} 3. g3 {[%clk 0:03:02.7]} 3... d5 {[%clk 0:03:00.9]}
4. Bg2 {[%clk 0:03:02.8]} 4... Be7 {[%clk 0:03:01.7]} 5. O-O {[%clk 0:03:03.4]}
5... O-O {[%clk 0:03:02.4]} 6. c4 {[%clk 0:03:04]} 6... dxc4 {[%clk 0:03:03.3]}
7. Ne5 {[%clk 0:03:03]} 7... Nc6 {[%clk 0:03:02.2]} 8. Nxc6 {[%clk 0:03:02.4]}
8... bxc6 {[%clk 0:03:01.3]} 9. Na3 {[%clk 0:03:02.9]} 9... Bxa3 {[%clk
0:02:46]} 10. bxa3 {[%clk 0:03:02.4]} 10... Rb8 {[%clk 0:02:44.5]} 11. Qa4
{[%clk 0:03:01.3]} 11... Qxd4 {[%clk 0:02:20.2]} 12. Be3 {[%clk 0:03:00.8]}
12... Qg4 {[%clk 0:02:20.3]} 13. Bxa7 {[%clk 0:02:32.7]} 13... Ra8 {[%clk
0:02:11.4]} 14. Bxc6 {[%clk 0:02:26.8]} 14... Bd7 {[%clk 0:02:11.3]} 15. Bxd7
{[%clk 0:02:22.2]} 15... Nxd7 {[%clk 0:02:09.1]} 16. Qxd7 {[%clk 0:02:21.2]}
16... Rxa7 {[%clk 0:02:08.9]} 17. Qxc7 {[%clk 0:02:20.1]} 17... Rxc7 {[%clk
0:02:08.1]} 0-1

[Event "*** Titled Tuesday Blitz"]
[Site "Chess.com"]
[Date "2020.05.26"]
[Round "10"]
[White "SHIVACalypso"]
[Black "mamey78"]
[Result "1-0"]
[WhiteElo "2301"]
[BlackElo "2381"]
[TimeControl "180+1"]
[EndTime "11:58:20 PDT"]
[Termination "SHIVACalypso won by resignation"]

1. Nf3 {[%clk 0:03:00.9]} 1... d5 {[%clk 0:02:58.8]} 2. c4 {[%clk 0:02:59.4]}
2... c6 {[%clk 0:02:57]} 3. d4 {[%clk 0:02:58.5]} 3... Nf6 {[%clk 0:02:56.6]} 4.
Nc3 {[%clk 0:02:57.1]} 4... e6 {[%clk 0:02:55.9]} 5. g3 {[%clk 0:02:56.8]} 5...
dxc4 {[%clk 0:02:54.5]} 6. Bg2 {[%clk 0:02:55.9]} 6... b5 {[%clk 0:02:54.1]} 7.
Ne5 {[%clk 0:02:54.3]} 7... Nd5 {[%clk 0:02:52.6]} 8. e4 {[%clk 0:02:53.2]} 8...
Nxc3 {[%clk 0:02:51.6]} 9. bxc3 {[%clk 0:02:54.1]} 9... Bb7 {[%clk 0:02:50.8]}
10. Qh5 {[%clk 0:02:49.6]} 10... g6 {[%clk 0:02:43.4]} 11. Nxg6 {[%clk
0:02:49.4]} 11... fxg6 {[%clk 0:02:41]} 12. Qe5 {[%clk 0:02:49.6]} 12... Qe7
{[%clk 0:02:26.6]} 13. Qxh8 {[%clk 0:02:48.2]} 13... Nd7 {[%clk 0:02:26.7]} 14.
h4 {[%clk 0:02:33.1]} 1-0

[Event "*** Titled Tuesday Blitz"]
[Site "Chess.com"]
[Date "2020.05.26"]
[Round "10"]
[White "GM4life"]
[Black "JuliaEfremova"]
[Result "1-0"]
[WhiteElo "2374"]
[BlackElo "2230"]
[TimeControl "180+1"]
[EndTime "11:58:25 PDT"]
[Termination "GM4life won by resignation"]

1. e4 {[%clk 0:03:00.9]} 1... d5 {[%clk 0:02:57]} 2. exd5 {[%clk 0:02:59.2]}
2... Qxd5 {[%clk 0:02:57.3]} 3. Nc3 {[%clk 0:02:57.9]} 3... Qa5 {[%clk
0:02:57.6]} 4. b4 {[%clk 0:02:56.2]} 4... Qxb4 {[%clk 0:02:51]} 5. Rb1 {[%clk
0:02:56.5]} 5... Qd6 {[%clk 0:02:49.4]} 6. Nf3 {[%clk 0:02:56.6]} 6... Qd8
{[%clk 0:02:49.7]} 7. d4 {[%clk 0:02:56.9]} 7... Nf6 {[%clk 0:02:48.9]} 8. Bc4
{[%clk 0:02:57]} 8... e6 {[%clk 0:02:48.8]} 9. O-O {[%clk 0:02:57.3]} 9... Be7
{[%clk 0:02:48.5]} 10. Re1 {[%clk 0:02:54.7]} 10... c6 {[%clk 0:02:44.2]} 11.
Bf4 {[%clk 0:02:54.3]} 11... O-O {[%clk 0:02:40.8]} 12. Ne5 {[%clk 0:02:54.1]}
12... b5 {[%clk 0:02:36.8]} 13. Bd3 {[%clk 0:02:52.8]} 13... a5 {[%clk
0:02:35.6]} 14. Ne4 {[%clk 0:02:51.3]} 14... b4 {[%clk 0:02:24.4]} 15. Nxf6+
{[%clk 0:02:49.1]} 15... Bxf6 {[%clk 0:02:25.3]} 16. Re3 {[%clk 0:02:18.5]}
16... g6 {[%clk 0:02:21.5]} 17. Bh6 {[%clk 0:02:15.5]} 17... Re8 {[%clk
0:02:18.3]} 18. Qf3 {[%clk 0:02:13.5]} 18... Qxd4 {[%clk 0:02:00]} 19. Qxf6
{[%clk 0:02:11.4]} 1-0

[Event "*** Titled Tuesday Blitz"]
[Site "Chess.com"]
[Date "2020.05.26"]
[Round "10"]
[White "CarlosAlbornoz"]
[Black "wnstop"]
[Result "1/2-1/2"]
[WhiteElo "2722"]
[BlackElo "2590"]
[TimeControl "180+1"]
[EndTime "11:58:43 PDT"]
[Termination "Game drawn by agreement"]

1. e4 {[%clk 0:03:00.9]} 1... c5 {[%clk 0:02:59.5]} 2. Nf3 {[%clk 0:03:01.1]}
2... Nc6 {[%clk 0:02:59.7]} 3. d4 {[%clk 0:03:01.4]} 3... cxd4 {[%clk
0:03:00.6]} 4. Nxd4 {[%clk 0:03:02.3]} 4... e5 {[%clk 0:03:00.4]} 5. Nb5 {[%clk
0:03:02.3]} 5... d6 {[%clk 0:03:00.9]} 6. N1c3 {[%clk 0:03:02.5]} 6... a6 {[%clk
0:03:00.8]} 7. Na3 {[%clk 0:03:01.8]} 7... Be7 {[%clk 0:03:01.2]} 8. Nd5 {[%clk
0:03:01.1]} 8... Nf6 {[%clk 0:03:00.6]} 9. Nxf6+ {[%clk 0:03:00.8]} 9... Bxf6
{[%clk 0:03:01.5]} 10. Nc4 {[%clk 0:03:01]} 10... O-O {[%clk 0:03:01.3]} 11.
Qxd6 {[%clk 0:02:57.3]} 11... Qxd6 {[%clk 0:02:56.3]} 12. Nxd6 {[%clk
0:02:57.1]} 12... Nb4 {[%clk 0:02:55.8]} 13. Bd3 {[%clk 0:02:54.8]} 13... Rd8
{[%clk 0:02:55.6]} 14. Nxc8 {[%clk 0:02:52.7]} 14... Raxc8 {[%clk 0:02:56.5]}
15. O-O {[%clk 0:02:47]} 15... Nxc2 {[%clk 0:02:54.7]} 16. Bxc2 {[%clk
0:02:46.6]} 16... Rxc2 {[%clk 0:02:55.6]} 17. b3 {[%clk 0:02:44.6]} 17... Rd4
{[%clk 0:02:36.8]} 18. Be3 {[%clk 0:02:40.1]} 18... Rxe4 {[%clk 0:02:30.6]} 19.
Rac1 {[%clk 0:02:40.4]} 19... Rxc1 {[%clk 0:02:26.2]} 20. Rxc1 {[%clk
0:02:40.2]} 20... h5 {[%clk 0:02:26.7]} 21. Rc8+ {[%clk 0:02:39.4]} 21... Kh7
{[%clk 0:02:25.7]} 22. Rc7 {[%clk 0:02:40.3]} 22... Bg5 {[%clk 0:02:15.4]} 23.
Rxf7 {[%clk 0:02:38.4]} 23... Bxe3 {[%clk 0:02:09.7]} 24. fxe3 {[%clk 0:02:38]}
24... Rxe3 {[%clk 0:02:10.2]} 25. Rxb7 {[%clk 0:02:37.6]} 25... Re2 {[%clk
0:02:07.9]} 26. a4 {[%clk 0:02:36.2]} 26... Rb2 {[%clk 0:02:06.1]} 27. Rb6
{[%clk 0:02:35.8]} 27... g6 {[%clk 0:01:58.5]} 28. Rxa6 {[%clk 0:02:34.4]} 28...
Rxb3 {[%clk 0:01:58.2]} 29. Re6 {[%clk 0:02:34.4]} 29... Ra3 {[%clk 0:01:57.1]}
30. Rxe5 {[%clk 0:02:34.2]} 30... Rxa4 {[%clk 0:01:57.3]} 1/2-1/2